{"text_format":"3","workbook":"xlsx","n_sheets":1,"sheets":["Tekaški dnevnik"],"not_rendered":{"charts":2,"images":1,"defined_names":1},"read":"whole","date_system":"1900"}

{"sheet":"Tekaški dnevnik","index":0,"n_rows":32,"n_cols":5,"rows_kept":32,"merged":[[21,1,21,4]]}
[]
[]
[]
[]
[]
[]
[null," VAŠ"]
[null," POVZETEK TEKA"]
[null," MESEC","ŠTEVILO TEKOV","SKUPNA RAZDALJA (kilometrov)","ŽELENA DOLŽINA TEKA (kilometrov)"]
[null,"2012-01-01",{"$f":"IFERROR(SUMPRODUCT( (MONTH(Dnevnik[PODATKI])=MONTH(POVZETEK[[#This Row],[ MESEC]]))*(YEAR(Dnevnik[PODATKI])=YEAR(POVZETEK[[#This Row],[ MESEC]])) ),\"Preverite vnos datuma\")","v":5},{"$f":"IFERROR(SUMPRODUCT( (MONTH(Dnevnik[PODATKI])=MONTH(POVZETEK[[#This Row],[ MESEC]]))*(YEAR(Dnevnik[PODATKI])=YEAR(POVZETEK[[#This Row],[ MESEC]])),Dnevnik[DOLŽINA (kilometrov)] ),\"Preverite vnos datuma\")","v":{"v":6.550000000000001,"d":"6.55"}},{"v":6,"d":"6.00"}]
[null,"2012-02-01",{"$f":"IFERROR(SUMPRODUCT( (MONTH(Dnevnik[PODATKI])=MONTH(POVZETEK[[#This Row],[ MESEC]]))*(YEAR(Dnevnik[PODATKI])=YEAR(POVZETEK[[#This Row],[ MESEC]])) ),\"Preverite vnos datuma\")","v":2},{"$f":"IFERROR(SUMPRODUCT( (MONTH(Dnevnik[PODATKI])=MONTH(POVZETEK[[#This Row],[ MESEC]]))*(YEAR(Dnevnik[PODATKI])=YEAR(POVZETEK[[#This Row],[ MESEC]])),Dnevnik[DOLŽINA (kilometrov)] ),\"Preverite vnos datuma\")","v":{"v":2.2,"d":"2.20"}},{"v":5,"d":"5.00"}]
[null,"2012-03-01",{"$f":"IFERROR(SUMPRODUCT( (MONTH(Dnevnik[PODATKI])=MONTH(POVZETEK[[#This Row],[ MESEC]]))*(YEAR(Dnevnik[PODATKI])=YEAR(POVZETEK[[#This Row],[ MESEC]])) ),\"Preverite vnos datuma\")","v":0},{"$f":"IFERROR(SUMPRODUCT( (MONTH(Dnevnik[PODATKI])=MONTH(POVZETEK[[#This Row],[ MESEC]]))*(YEAR(Dnevnik[PODATKI])=YEAR(POVZETEK[[#This Row],[ MESEC]])),Dnevnik[DOLŽINA (kilometrov)] ),\"Preverite vnos datuma\")","v":{"v":0,"d":"0.00"}},{"v":6,"d":"6.00"}]
[null,"2012-04-01",{"$f":"IFERROR(SUMPRODUCT( (MONTH(Dnevnik[PODATKI])=MONTH(POVZETEK[[#This Row],[ MESEC]]))*(YEAR(Dnevnik[PODATKI])=YEAR(POVZETEK[[#This Row],[ MESEC]])) ),\"Preverite vnos datuma\")","v":0},{"$f":"IFERROR(SUMPRODUCT( (MONTH(Dnevnik[PODATKI])=MONTH(POVZETEK[[#This Row],[ MESEC]]))*(YEAR(Dnevnik[PODATKI])=YEAR(POVZETEK[[#This Row],[ MESEC]])),Dnevnik[DOLŽINA (kilometrov)] ),\"Preverite vnos datuma\")","v":{"v":0,"d":"0.00"}},{"v":7,"d":"7.00"}]
[null,"2012-05-01",{"$f":"IFERROR(SUMPRODUCT( (MONTH(Dnevnik[PODATKI])=MONTH(POVZETEK[[#This Row],[ MESEC]]))*(YEAR(Dnevnik[PODATKI])=YEAR(POVZETEK[[#This Row],[ MESEC]])) ),\"Preverite vnos datuma\")","v":0},{"$f":"IFERROR(SUMPRODUCT( (MONTH(Dnevnik[PODATKI])=MONTH(POVZETEK[[#This Row],[ MESEC]]))*(YEAR(Dnevnik[PODATKI])=YEAR(POVZETEK[[#This Row],[ MESEC]])),Dnevnik[DOLŽINA (kilometrov)] ),\"Preverite vnos datuma\")","v":{"v":0,"d":"0.00"}},{"v":8,"d":"8.00"}]
[null,"2012-06-01",{"$f":"IFERROR(SUMPRODUCT( (MONTH(Dnevnik[PODATKI])=MONTH(POVZETEK[[#This Row],[ MESEC]]))*(YEAR(Dnevnik[PODATKI])=YEAR(POVZETEK[[#This Row],[ MESEC]])) ),\"Preverite vnos datuma\")","v":0},{"$f":"IFERROR(SUMPRODUCT( (MONTH(Dnevnik[PODATKI])=MONTH(POVZETEK[[#This Row],[ MESEC]]))*(YEAR(Dnevnik[PODATKI])=YEAR(POVZETEK[[#This Row],[ MESEC]])),Dnevnik[DOLŽINA (kilometrov)] ),\"Preverite vnos datuma\")","v":{"v":0,"d":"0.00"}},{"v":8,"d":"8.00"}]
[null,"2012-07-01",{"$f":"IFERROR(SUMPRODUCT( (MONTH(Dnevnik[PODATKI])=MONTH(POVZETEK[[#This Row],[ MESEC]]))*(YEAR(Dnevnik[PODATKI])=YEAR(POVZETEK[[#This Row],[ MESEC]])) ),\"Preverite vnos datuma\")","v":0},{"$f":"IFERROR(SUMPRODUCT( (MONTH(Dnevnik[PODATKI])=MONTH(POVZETEK[[#This Row],[ MESEC]]))*(YEAR(Dnevnik[PODATKI])=YEAR(POVZETEK[[#This Row],[ MESEC]])),Dnevnik[DOLŽINA (kilometrov)] ),\"Preverite vnos datuma\")","v":{"v":0,"d":"0.00"}},{"v":9,"d":"9.00"}]
[null,"2012-08-01",{"$f":"IFERROR(SUMPRODUCT( (MONTH(Dnevnik[PODATKI])=MONTH(POVZETEK[[#This Row],[ MESEC]]))*(YEAR(Dnevnik[PODATKI])=YEAR(POVZETEK[[#This Row],[ MESEC]])) ),\"Preverite vnos datuma\")","v":0},{"$f":"IFERROR(SUMPRODUCT( (MONTH(Dnevnik[PODATKI])=MONTH(POVZETEK[[#This Row],[ MESEC]]))*(YEAR(Dnevnik[PODATKI])=YEAR(POVZETEK[[#This Row],[ MESEC]])),Dnevnik[DOLŽINA (kilometrov)] ),\"Preverite vnos datuma\")","v":{"v":0,"d":"0.00"}},{"v":9,"d":"9.00"}]
[null,"2012-09-01",{"$f":"IFERROR(SUMPRODUCT( (MONTH(Dnevnik[PODATKI])=MONTH(POVZETEK[[#This Row],[ MESEC]]))*(YEAR(Dnevnik[PODATKI])=YEAR(POVZETEK[[#This Row],[ MESEC]])) ),\"Preverite vnos datuma\")","v":0},{"$f":"IFERROR(SUMPRODUCT( (MONTH(Dnevnik[PODATKI])=MONTH(POVZETEK[[#This Row],[ MESEC]]))*(YEAR(Dnevnik[PODATKI])=YEAR(POVZETEK[[#This Row],[ MESEC]])),Dnevnik[DOLŽINA (kilometrov)] ),\"Preverite vnos datuma\")","v":{"v":0,"d":"0.00"}},{"v":9.5,"d":"9.50"}]
[null,"2012-10-01",{"$f":"IFERROR(SUMPRODUCT( (MONTH(Dnevnik[PODATKI])=MONTH(POVZETEK[[#This Row],[ MESEC]]))*(YEAR(Dnevnik[PODATKI])=YEAR(POVZETEK[[#This Row],[ MESEC]])) ),\"Preverite vnos datuma\")","v":0},{"$f":"IFERROR(SUMPRODUCT( (MONTH(Dnevnik[PODATKI])=MONTH(POVZETEK[[#This Row],[ MESEC]]))*(YEAR(Dnevnik[PODATKI])=YEAR(POVZETEK[[#This Row],[ MESEC]])),Dnevnik[DOLŽINA (kilometrov)] ),\"Preverite vnos datuma\")","v":{"v":0,"d":"0.00"}},{"v":10,"d":"10.00"}]
[null,"2012-11-01",{"$f":"IFERROR(SUMPRODUCT( (MONTH(Dnevnik[PODATKI])=MONTH(POVZETEK[[#This Row],[ MESEC]]))*(YEAR(Dnevnik[PODATKI])=YEAR(POVZETEK[[#This Row],[ MESEC]])) ),\"Preverite vnos datuma\")","v":0},{"$f":"IFERROR(SUMPRODUCT( (MONTH(Dnevnik[PODATKI])=MONTH(POVZETEK[[#This Row],[ MESEC]]))*(YEAR(Dnevnik[PODATKI])=YEAR(POVZETEK[[#This Row],[ MESEC]])),Dnevnik[DOLŽINA (kilometrov)] ),\"Preverite vnos datuma\")","v":{"v":0,"d":"0.00"}},{"v":10,"d":"10.00"}]
[null,"2012-12-01",{"$f":"IFERROR(SUMPRODUCT( (MONTH(Dnevnik[PODATKI])=MONTH(POVZETEK[[#This Row],[ MESEC]]))*(YEAR(Dnevnik[PODATKI])=YEAR(POVZETEK[[#This Row],[ MESEC]])) ),\"Preverite vnos datuma\")","v":0},{"$f":"IFERROR(SUMPRODUCT( (MONTH(Dnevnik[PODATKI])=MONTH(POVZETEK[[#This Row],[ MESEC]]))*(YEAR(Dnevnik[PODATKI])=YEAR(POVZETEK[[#This Row],[ MESEC]])),Dnevnik[DOLŽINA (kilometrov)] ),\"Preverite vnos datuma\")","v":{"v":0,"d":"0.00"}},{"v":11,"d":"11.00"}]
[]
[null," VAŠ"]
[null," TEKAŠKI DNEVNIK"]
[null,"PODATKI","ČAS","DOLŽINA (kilometrov)","TEMPO (minut)"]
[null,"2012-01-01",0.006944444444444444,{"v":1.2,"d":"1.20"},{"$f":"IFERROR(MINUTE(Dnevnik[[#This Row],[ČAS]])/Dnevnik[[#This Row],[DOLŽINA (kilometrov)]],0)","v":{"v":8.333333333333334,"d":"8.33"}}]
[null,"2012-01-03",0.008333333333333333,1.35,{"$f":"IFERROR(MINUTE(Dnevnik[[#This Row],[ČAS]])/Dnevnik[[#This Row],[DOLŽINA (kilometrov)]],0)","v":{"v":8.888888888888888,"d":"8.89"}}]
[null,"2012-01-05",0.010069444444444445,1.45,{"$f":"IFERROR(MINUTE(Dnevnik[[#This Row],[ČAS]])/Dnevnik[[#This Row],[DOLŽINA (kilometrov)]],0)","v":{"v":9.655172413793103,"d":"9.66"}}]
[null,"2012-01-08",0.009027777777777779,1.45,{"$f":"IFERROR(MINUTE(Dnevnik[[#This Row],[ČAS]])/Dnevnik[[#This Row],[DOLŽINA (kilometrov)]],0)","v":{"v":8.965517241379311,"d":"8.97"}}]
[null,"2012-01-09",0.007175925925925926,{"v":1.1,"d":"1.10"},{"$f":"IFERROR(MINUTE(Dnevnik[[#This Row],[ČAS]])/Dnevnik[[#This Row],[DOLŽINA (kilometrov)]],0)","v":{"v":9.09090909090909,"d":"9.09"}}]
[null,"2012-02-01",0.006319444444444444,{"v":1.1,"d":"1.10"},{"$f":"IFERROR(MINUTE(Dnevnik[[#This Row],[ČAS]])/Dnevnik[[#This Row],[DOLŽINA (kilometrov)]],0)","v":{"v":8.181818181818182,"d":"8.18"}}]
[null,"2012-02-03",0.005555555555555556,{"v":1.1,"d":"1.10"},{"$f":"IFERROR(MINUTE(Dnevnik[[#This Row],[ČAS]])/Dnevnik[[#This Row],[DOLŽINA (kilometrov)]],0)","v":{"v":7.2727272727272725,"d":"7.27"}}]